bitfinex/quotes_BTCUSD_20250526
["timestamp","ask_amount","ask_price","bid_price","bid_amount"]
[1748240435370,0.07268146,109520.0,109500.0,0.07187629]
[1748240435532,0.03077411,109520.0,109510.0,0.02195825]
[1748240435735,0.03077411,109520.0,109500.0,0.05220079]
[1748240435987,0.03077411,109520.0,109510.0,0.01793471]
[1748240436178,0.03077411,109520.0,109510.0,0.03413471]
[1748240436377,0.03077411,109520.0,109510.0,0.0162]
[1748240436572,0.03077411,109520.0,109510.0,0.03413471]
[1748240436731,0.03077411,109520.0,109510.0,0.0162]
[1748240437157,0.03077411,109520.0,109510.0,0.03414721]
[1748240437383,0.03177411,109520.0,109510.0,0.03414721]
[1748240437589,0.03277411,109520.0,109510.0,0.0594063]
[1748240437785,0.03277411,109520.0,109510.0,0.04788886]
[1748240437985,0.03177411,109520.0,109510.0,0.04788886]
[1748240438290,0.03377411,109520.0,109510.0,0.04788886]
[1748240439345,0.03377411,109520.0,109510.0,1.76553044]
[1748240439552,0.03377411,109520.0,109510.0,1.73511042]
[1748240439941,0.03377411,109520.0,109510.0,1.70626421]
[1748240440115,0.02777411,109520.0,109510.0,1.70626421]
[1748240440972,0.02777411,109520.0,109510.0,1.60447121]
[1748240443784,0.02777411,109520.0,109510.0,0.35374165]
[1748240445378,0.06127411,109520.0,109480.0,0.3714428]
[1748240445699,0.02777411,109520.0,109510.0,0.0731228]
[1748240445827,0.01467357,109530.0,109510.0,1.46306436]
[1748240446028,0.01467357,109530.0,109520.0,0.58680081]
[1748240446288,0.01467357,109530.0,109520.0,0.58451856]
[1748240446787,0.01467357,109530.0,109520.0,0.56316387]
[1748240447190,0.01467357,109530.0,109520.0,0.90316387]
[1748240447420,0.01467357,109530.0,109520.0,0.90816387]
[1748240447575,0.01467357,109530.0,109520.0,0.345]
[1748240448009,0.00867357,109530.0,109520.0,0.345]
[1748240449272,0.00867357,109530.0,109520.0,0.342]
[1748240449491,0.00867357,109530.0,109520.0,0.341]
[1748240449874,0.00867357,109530.0,109520.0,0.342]
[1748240451803,0.00867357,109530.0,109520.0,0.757348]
[1748240452148,0.00867357,109530.0,109520.0,0.683787]
[1748240452310,0.00867357,109530.0,109520.0,0.342]
[1748240452923,0.00867357,109530.0,109520.0,0.496321]
[1748240453138,0.00867357,109530.0,109520.0,0.342]
[1748240453327,0.02597357,109530.0,109520.0,0.342]
[1748240455524,0.01997357,109530.0,109520.0,0.342]
[1748240455930,0.01997357,109530.0,109520.0,0.341]
[1748240456207,0.01997357,109530.0,109520.0,0.34]
[1748240456491,0.02097357,109530.0,109520.0,0.34]
[1748240456838,0.03847357,109530.0,109520.0,0.34]
[1748240457040,0.00367357,109530.0,109520.0,2.27146056]
[1748240457218,0.00367357,109530.0,109520.0,2.45042056]
[1748240458111,0.02275843,109540.0,109530.0,0.0332]
[1748240458313,0.02275843,109540.0,109530.0,2.48678538]
[1748240458486,0.02275843,109540.0,109530.0,2.64731536]
[1748240458625,0.0154721,109540.0,109530.0,2.98731536]
[1748240458986,0.01666193,109540.0,109530.0,2.98731536]
[1748240459189,0.01666193,109540.0,109530.0,3.0153259]
[1748240459327,0.0093756,109540.0,109530.0,3.0153259]
[1748240459538,0.0113756,109540.0,109530.0,3.0153259]
[1748240459761,0.00208927,109540.0,109530.0,3.0153259]
[1748240459962,0.00308927,109540.0,109530.0,2.7450909]
[1748240460181,0.06745189,109550.0,109540.0,0.34]
[1748240460411,0.06745189,109550.0,109540.0,1.2091231]
[1748240460933,0.06745189,109550.0,109540.0,1.201689]
[1748240461131,0.06745189,109550.0,109540.0,1.22969954]
[1748240461271,0.06745189,109550.0,109540.0,1.217889]
[1748240461475,0.06745189,109550.0,109540.0,1.234289]
[1748240461963,0.06745189,109550.0,109540.0,1.26229954]
[1748240462337,0.06845189,109550.0,109540.0,1.26229954]
[1748240463252,0.06245189,109550.0,109540.0,1.26229954]
[1748240463436,0.06245189,109550.0,109540.0,1.29043696]
[1748240463648,0.06245189,109550.0,109540.0,1.26229954]
[1748240463841,0.06245189,109550.0,109540.0,1.24589954]
[1748240464628,0.06245189,109550.0,109540.0,1.27403696]
[1748240464845,0.06245189,109550.0,109540.0,1.24589954]
[1748240466227,0.06245189,109550.0,109540.0,1.54449954]
[1748240466399,0.06245189,109550.0,109540.0,1.57183854]
[1748240466739,0.06245189,109550.0,109540.0,1.27323854]
[1748240466941,0.06245189,109550.0,109540.0,1.57183854]
[1748240468239,0.06245189,109550.0,109540.0,1.27323854]
[1748240468384,0.06245189,109550.0,109540.0,1.57183854]
[1748240470563,0.06245189,109550.0,109540.0,1.25703854]
[1748240470711,0.06245189,109550.0,109540.0,1.55563854]
[1748240470932,0.05645189,109550.0,109540.0,1.55563854]
[1748240471517,0.05645189,109550.0,109540.0,1.25703854]
[1748240471717,0.05645189,109550.0,109540.0,0.33922965]
[1748240471718,0.08985189,109550.0,109540.0,0.33922965]
[1748240471920,0.07365189,109550.0,109540.0,0.33922965]
[1748240472167,0.05645189,109550.0,109540.0,0.84869021]
[1748240472364,0.05645189,109550.0,109540.0,0.88319021]
[1748240473145,0.08995189,109550.0,109540.0,0.02057644]
[1748240473515,0.08995189,109550.0,109530.0,0.2192137]
[1748240473721,0.08995189,109550.0,109530.0,0.24013688]
[1748240474451,0.07265189,109550.0,109540.0,0.00228211]
[1748240474663,0.07265189,109550.0,109540.0,0.07540491]
[1748240474858,0.07265189,109550.0,109540.0,0.62399209]
[1748240475083,0.07165189,109550.0,109540.0,0.62170998]
[1748240475264,0.08905189,109550.0,109540.0,0.62170998]
[1748240475887,0.09005189,109550.0,109540.0,0.62170998]
[1748240476054,0.09005189,109550.0,109540.0,0.0731228]
[1748240476254,0.09005189,109550.0,109540.0,0.62170998]
[1748240477090,0.09005189,109550.0,109540.0,0.96170998]
[1748240478319,0.09005189,109550.0,109540.0,0.4131228]
[1748240478755,0.08405189,109550.0,109540.0,0.4131228]
[1748240478955,0.11474877,109550.0,109540.0,0.4131228]
[1748240484017,0.11474877,109550.0,109540.0,0.96187207]
[1748240486444,0.10874877,109550.0,109540.0,0.4131228]
[1748240486945,0.10874877,109550.0,109540.0,0.96187207]
[1748240487793,0.10874877,109550.0,109540.0,0.4131228]
[1748240488248,0.07805189,109550.0,109540.0,0.4131228]
[1748240488651,0.07805189,109550.0,109540.0,0.96187207]
[1748240489624,0.07805189,109550.0,109540.0,0.4131228]
[1748240494113,0.07205189,109550.0,109540.0,0.4131228]
[1748240499975,0.16159745,109550.0,109540.0,0.34]
[1748240500191,0.16159745,109550.0,109520.0,0.0731228]
[1748240500192,0.75344601,109550.0,109520.0,0.0731228]
[1748240500363,0.0344,109530.0,109520.0,0.0731228]
[1748240501558,0.0344,109530.0,109520.0,0.0741228]
[1748240501883,0.0284,109530.0,109520.0,0.0731228]
[1748240502082,0.0284,109530.0,109520.0,0.0741228]
[1748240502304,0.0284,109530.0,109520.0,0.0731228]
[1748240503272,0.0178,109530.0,109520.0,0.96187207]
[1748240503477,0.16396,109540.0,109530.0,0.34]
[1748240503636,0.0182,109540.0,109530.0,0.88874927]
[1748240504251,0.0182,109540.0,109530.0,0.34]
[1748240504779,0.0182,109540.0,109520.0,0.0731228]
[1748240505074,0.0159,109530.0,109520.0,0.0731228]
[1748240505306,0.0338,109530.0,109520.0,0.0731228]
[1748240505506,0.0338,109530.0,109520.0,0.96187207]
[1748240506065,0.0338,109530.0,109520.0,0.96387207]
[1748240506268,0.0338,109530.0,109520.0,0.96287207]
[1748240506466,0.0338,109530.0,109520.0,0.96387207]
[1748240507292,0.0338,109530.0,109520.0,0.96287207]
[1748240508337,0.0338,109530.0,109520.0,0.4141228]
[1748240508574,0.0338,109530.0,109520.0,0.96287207]
[1748240508793,0.12334556,109530.0,109520.0,0.341]
[1748240508979,0.12334556,109530.0,109520.0,0.001]
[1748240509537,0.11734556,109530.0,109520.0,0.001]
[1748240513711,0.11734556,109530.0,109520.0,0.54974927]
[1748240513956,0.17946,109540.0,109520.0,0.62287207]
[1748240514159,0.0337,109540.0,109530.0,0.54874927]
[1748240514363,0.0337,109540.0,109520.0,0.62287207]
[1748240514914,0.0337,109540.0,109520.0,0.62187207]
[1748240515841,0.0171,109530.0,109500.0,0.1081228]
[1748240516046,0.0171,109520.0,109500.0,0.65702114]
[1748240516279,0.0171,109520.0,109510.0,0.54874927]
[1748240516728,0.035,109520.0,109500.0,0.62202114]
[1748240517051,0.035,109520.0,109500.0,0.62502114]
[1748240517428,0.029,109520.0,109510.0,0.34]
[1748240518669,0.029,109520.0,109510.0,0.342]
[1748240519069,0.029,109520.0,109510.0,0.34]
[1748240519580,0.029,109520.0,109510.0,0.342]
[1748240520095,0.029,109520.0,109510.0,0.34]
[1748240521027,0.14497612,109520.0,109500.0,0.07327187]
[1748240521237,0.0341,109510.0,109500.0,0.07327187]
[1748240522051,0.12364556,109510.0,109500.0,0.07327187]
[1748240522466,0.12364556,109510.0,109500.0,0.07527187]
[1748240522677,0.26944556,109510.0,109500.0,0.07527187]
[1748240523242,0.26944556,109510.0,109500.0,0.07727187]
[1748240523633,0.26944556,109510.0,109500.0,0.62402114]
[1748240523831,0.25224556,109510.0,109500.0,0.62402114]
[1748240524040,0.25224556,109510.0,109500.0,0.62602114]
[1748240524814,0.25224556,109510.0,109500.0,0.96602114]
[1748240525155,0.24624556,109510.0,109500.0,0.96602114]
[1748240525370,0.11744556,109510.0,109500.0,0.41727187]
[1748240531542,0.11744556,109510.0,109500.0,0.96602114]
[1748240531778,0.18648,109520.0,109500.0,0.96602114]
[1748240531991,0.1458,109510.0,109500.0,0.96602114]
[1748240532216,0.42182556,109520.0,109500.0,0.96602114]
[1748240532729,0.41582556,109520.0,109500.0,0.96202114]
[1748240532944,0.41582556,109520.0,109500.0,0.96602114]
[1748240534811,0.0323,109510.0,109500.0,0.96602114]
[1748240535316,0.03218884,109510.0,109500.0,0.96602114]
[1748240535615,0.03218884,109510.0,109500.0,0.96402114]
[1748240535846,0.03218884,109510.0,109500.0,0.41327187]
[1748240535998,0.03218884,109510.0,109500.0,0.41727187]
[1748240536916,0.1217344,109510.0,109500.0,0.41727187]
[1748240538060,0.1217344,109510.0,109500.0,0.41527187]
[1748240538392,0.1217344,109510.0,109500.0,0.41327187]
[1748240540312,0.0323,109530.0,109500.0,0.65462114]
[1748240540553,0.08954556,109520.0,109510.0,0.54874927]
[1748240540754,0.08954556,109520.0,109510.0,0.351944]
[1748240540873,0.08954556,109520.0,109500.0,0.65462114]
[1748240541082,0.10564556,109520.0,109500.0,0.65462114]
[1748240541712,0.10664556,109520.0,109500.0,0.65462114]
[1748240541911,0.10564556,109520.0,109500.0,0.65462114]
[1748240542112,0.10564556,109520.0,109510.0,0.34]
[1748240543402,0.08954556,109520.0,109510.0,0.34]
[1748240543765,0.1458,109520.0,109510.0,0.34]
[1748240544269,0.1478,109520.0,109510.0,0.34]
[1748240545539,0.002,109520.0,109510.0,0.34]
[1748240545742,0.002,109520.0,109510.0,0.54874927]
[1748240545946,0.002,109520.0,109510.0,0.58174927]
[1748240545947,0.1478,109520.0,109510.0,0.58174927]
[1748240547537,0.002,109520.0,109510.0,0.58174927]
[1748240548149,0.159,109530.0,109510.0,0.58174927]
[1748240549223,0.1752,109530.0,109520.0,0.34]
[1748240549904,0.26474556,109530.0,109520.0,0.34]
[1748240550271,0.26574556,109530.0,109520.0,0.34]
[1748240550482,0.26674556,109530.0,109520.0,0.34]
[1748240550659,0.26574556,109530.0,109520.0,0.34]
[1748240551160,0.26774556,109530.0,109520.0,0.34]
[1748240551360,0.26674556,109530.0,109520.0,0.34]
[1748240554189,0.09154556,109530.0,109520.0,0.34]
[1748240554349,0.23734556,109530.0,109520.0,0.34]
[1748240555908,0.23134556,109530.0,109520.0,0.34]
[1748240557970,0.24754556,109530.0,109520.0,0.34]
[1748240558464,0.26414556,109530.0,109520.0,0.34]
[1748240563050,0.26414556,109530.0,109520.0,0.1128331]
[1748240563257,0.26414556,109530.0,109510.0,0.0333]
[1748240563687,0.11234556,109530.0,109510.0,0.0333]
[1748240563935,0.25814556,109530.0,109510.0,0.0333]
[1748240564162,0.24154556,109530.0,109510.0,0.0333]
[1748240564463,0.24054556,109530.0,109510.0,0.0333]
[1748240564691,0.1478,109530.0,109510.0,0.0333]
[1748240564898,0.002,109530.0,109510.0,0.0333]
[1748240565017,0.1478,109530.0,109520.0,0.58101705]
[1748240565624,0.1478,109530.0,109520.0,0.56481705]
[1748240565954,0.1458,109530.0,109520.0,0.54891705]
[1748240566172,0.1458,109530.0,109520.0,0.88891705]
[1748240566336,0.1488,109530.0,109520.0,0.90651705]
[1748240566576,0.1488,109530.0,109520.0,0.92361705]
[1748240566784,0.003,109530.0,109520.0,0.92361705]
[1748240566988,0.1488,109530.0,109520.0,0.92361705]
[1748240568205,0.003,109530.0,109520.0,0.92361705]
[1748240571241,0.1428,109540.0,109530.0,0.34]
[1748240571449,0.1596,109540.0,109530.0,0.34]
[1748240572465,0.1616,109540.0,109530.0,0.34]
[1748240572835,0.1777,109540.0,109530.0,0.34]
[1748240573017,0.1787,109540.0,109530.0,0.34]
[1748240573370,0.1787,109540.0,109510.0,0.38791108]
[1748240573571,0.1787,109540.0,109530.0,0.34]
[1748240574274,0.1606,109540.0,109530.0,0.34]
[1748240574492,0.1438,109540.0,109530.0,0.34]
[1748240574991,0.1428,109540.0,109530.0,0.34]
[1748240575200,0.1438,109540.0,109530.0,0.34]
[1748240575903,0.1438,109540.0,109520.0,0.0338]
[1748240576089,0.16,109540.0,109520.0,0.58271705]
[1748240576461,0.16,109540.0,109520.0,0.0338]
[1748240576692,0.16,109540.0,109520.0,0.58271705]
[1748240577136,0.159,109540.0,109520.0,0.58271705]
[1748240577956,0.159,109540.0,109530.0,0.34]
[1748240578858,0.1755,109540.0,109530.0,0.34]
[1748240579037,0.1695,109540.0,109530.0,0.34]
[1748240579445,0.153,109540.0,109530.0,0.34]
[1748240580352,0.154,109540.0,109530.0,0.34]
[1748240580709,0.154,109540.0,109530.0,0.33882105]
[1748240581038,0.1378,109540.0,109530.0,0.33882105]
[1748240584882,0.1378,109540.0,109530.0,0.54891705]
[1748240585325,0.1378,109540.0,109530.0,0.88891705]
[1748240585564,0.1555,109540.0,109530.0,0.88891705]
[1748240585877,0.1555,109540.0,109530.0,0.34]
[1748240586034,0.1555,109540.0,109530.0,0.88886616]
[1748240586240,0.1725,109540.0,109530.0,0.88886616]
[1748240586653,0.1665,109540.0,109530.0,0.88886616]
[1748240587483,0.1665,109540.0,109530.0,0.34]
[1748240587680,0.25604556,109540.0,109520.0,0.54886616]
[1748240588323,0.26600966,109540.0,109520.0,0.54886616]
[1748240588635,0.26500966,109540.0,109520.0,0.54886616]
[1748240589587,0.26500966,109540.0,109530.0,0.54886616]
[1748240591167,0.26600966,109540.0,109530.0,0.54886616]
[1748240593201,0.26600966,109540.0,109520.0,0.54886616]
[1748240594310,0.26500966,109540.0,109520.0,0.54886616]
[1748240594538,0.25900966,109540.0,109520.0,0.54886616]
[1748240594666,0.25900966,109540.0,109530.0,0.54886616]
[1748240594880,0.24130966,109540.0,109520.0,0.54886616]
[1748240595090,0.0168,109530.0,109520.0,0.54886616]
[1748240596254,0.0168,109530.0,109520.0,0.88886616]
[1748240597450,0.0168,109530.0,109520.0,0.34]
[1748240597648,0.0332,109530.0,109520.0,0.88886616]
[1748240599148,0.0332,109530.0,109520.0,0.34]
[1748240599291,0.0332,109530.0,109520.0,0.88886616]
[1748240599710,0.12274556,109530.0,109520.0,0.88886616]
[1748240599918,0.12274556,109530.0,109520.0,0.34]
[1748240600763,0.12274556,109530.0,109520.0,0.88886616]
[1748240602267,0.11674556,109530.0,109520.0,0.88886616]
[1748240606866,0.11674556,109530.0,109520.0,0.34]
[1748240608598,0.11674556,109530.0,109520.0,0.88886616]
[1748240609650,0.11674556,109530.0,109520.0,0.34]
[1748240609853,0.11074556,109530.0,109520.0,0.34]
[1748240611060,0.10584556,109530.0,109520.0,0.34]
[1748240613130,0.10584556,109530.0,109520.0,0.88886616]
[1748240615328,0.12284556,109530.0,109520.0,0.88886616]
[1748240616689,0.12284556,109530.0,109510.0,0.03718818]
[1748240616929,0.23534556,109520.0,109500.0,0.10607187]
[1748240617129,0.08954556,109520.0,109500.0,0.68582962]
[1748240617954,0.09938446,109520.0,109500.0,0.68582962]
[1748240618324,0.09938446,109520.0,109500.0,0.68682962]
[1748240618526,0.11678446,109520.0,109500.0,0.68682962]
[1748240618724,0.12778446,109520.0,109500.0,0.68682962]
[1748240619686,0.12778446,109520.0,109500.0,0.68782962]
[1748240619892,0.64225062,109520.0,109500.0,0.34214907]
[1748240620124,0.0343,109510.0,109500.0,0.00214907]
[1748240620326,0.23534556,109510.0,109500.0,0.00214907]
[1748240620536,0.23534556,109510.0,109500.0,0.92671523]
[1748240621295,0.23534556,109510.0,109500.0,0.92571523]
[1748240621891,0.23534556,109510.0,109500.0,0.92671523]
[1748240622324,0.23534556,109510.0,109500.0,0.92571523]
[1748240622826,0.23534556,109510.0,109500.0,0.92471523]
[1748240624972,0.08954556,109510.0,109500.0,0.92471523]
[1748240626476,0.08354556,109510.0,109500.0,0.92471523]
[1748240627587,0.08354556,109510.0,109500.0,1.47358139]
[1748240628134,0.08354556,109510.0,109500.0,0.92471523]
[1748240628457,0.08354556,109510.0,109500.0,0.90711523]
[1748240628809,0.08354556,109510.0,109500.0,1.45598139]
[1748240628987,0.08354556,109510.0,109500.0,0.90711523]
[1748240630311,0.08354556,109510.0,109500.0,0.92391523]
[1748240630912,0.08354556,109510.0,109500.0,0.90711523]
[1748240631356,0.08354556,109510.0,109500.0,0.92471523]
[1748240634264,0.07754556,109510.0,109500.0,0.92471523]
[1748240635522,0.07754556,109510.0,109500.0,0.90711523]
[1748240635660,0.07754556,109510.0,109500.0,0.88901523]
[1748240639080,0.07754556,109510.0,109500.0,0.34014907]
[1748240639281,0.07754556,109510.0,109500.0,0.88901523]
[1748240641977,0.1784,109520.0,109500.0,0.88901523]
[1748240642198,0.26794556,109520.0,109500.0,0.88901523]
[1748240642407,0.27791556,109520.0,109500.0,0.90651523]
[1748240649626,0.27191556,109520.0,109500.0,0.90651523]
[1748240651035,0.28645641,109520.0,109510.0,0.54886616]
[1748240652239,0.28745641,109520.0,109510.0,0.54886616]
[1748240652756,0.28745641,109520.0,109500.0,0.90651523]
[1748240653895,0.28745641,109520.0,109500.0,0.88901523]
[1748240654621,0.28745641,109520.0,109500.0,0.00014907]
[1748240654622,0.12364556,109510.0,109500.0,0.00014907]
[1748240657380,0.11764556,109510.0,109500.0,0.00014907]
[1748240657599,0.08954556,109510.0,109500.0,0.54901523]
[1748240658014,0.09054556,109510.0,109500.0,0.00014907]
[1748240658142,0.09054556,109510.0,109500.0,0.54901523]
[1748240659060,0.08908207,109510.0,109500.0,0.54901523]
[1748240659484,0.23488207,109510.0,109500.0,0.54901523]
[1748240665079,0.22888207,109510.0,109500.0,0.54901523]
[1748240665589,0.08308207,109510.0,109500.0,0.54901523]
[1748240665792,0.22888207,109510.0,109500.0,0.54901523]
[1748240670483,0.26248207,109510.0,109500.0,0.54901523]
[1748240672085,0.24528207,109510.0,109500.0,0.54901523]
[1748240672282,0.22888207,109510.0,109500.0,0.54901523]
[1748240672832,0.22288207,109510.0,109500.0,0.54901523]
[1748240673913,0.22288207,109510.0,109500.0,0.00014907]
[1748240674120,0.22288207,109510.0,109500.0,0.54901523]
[1748240675108,0.25618207,109510.0,109500.0,0.54901523]
[1748240680022,0.25618207,109510.0,109500.0,0.00014907]
[1748240680822,0.25018207,109510.0,109500.0,0.00014907]
[1748240681958,0.25018207,109510.0,109500.0,0.54901523]
[1748240682156,0.21688207,109510.0,109500.0,0.34804597]
[1748240688093,0.21688207,109510.0,109490.0,0.3737]
[1748240688304,0.21701807,109510.0,109500.0,0.54886616]
[1748240688458,0.21101807,109510.0,109500.0,0.54886616]
[1748240690076,0.21201807,109510.0,109500.0,0.54886616]
[1748240692591,0.21201807,109510.0,109490.0,0.92256616]
[1748240693541,0.22090607,109510.0,109490.0,0.3737]
[1748240693883,0.21990607,109510.0,109490.0,0.92256616]
[1748240696244,0.21390607,109510.0,109490.0,0.92256616]
[1748240698582,0.21390607,109510.0,109500.0,0.54886616]
[1748240699740,0.21490607,109510.0,109500.0,0.54886616]
[1748240699929,0.21490607,109510.0,109490.0,0.3737]
[1748240700355,0.21790607,109510.0,109490.0,0.3737]
[1748240701403,0.8012033,109510.0,109490.0,0.3737]
[1748240701657,0.8012033,109510.0,109490.0,0.3571]
[1748240701857,0.25100607,109510.0,109490.0,0.3571]
[1748240702064,0.24700607,109510.0,109490.0,0.3571]
[1748240702300,0.24900607,109510.0,109490.0,0.3571]
[1748240702537,0.24900607,109510.0,109490.0,0.3737]
[1748240703122,0.24900607,109510.0,109490.0,0.3571]
[1748240704028,0.24300607,109510.0,109490.0,0.3571]
[1748240705857,0.7922033,109510.0,109480.0,0.0329]
[1748240706439,0.80928839,109510.0,109480.0,0.0329]
[1748240706852,0.7922033,109510.0,109480.0,0.0329]
[1748240707083,0.24200607,109510.0,109480.0,0.0329]
[1748240707290,0.24200607,109510.0,109490.0,0.0163]
[1748240707881,0.25908484,109510.0,109490.0,0.0163]
[1748240708031,0.25808484,109510.0,109490.0,0.0163]
[1748240708781,0.32117129,109510.0,109490.0,0.0163]
[1748240709088,0.30509252,109510.0,109490.0,0.0163]
[1748240709264,0.30609252,109510.0,109490.0,0.0163]
[1748240710698,0.2752023,109510.0,109490.0,0.0163]
[1748240710904,0.24300607,109510.0,109490.0,0.0163]
[1748240711638,0.23700607,109510.0,109490.0,0.0163]
[1748240712097,0.23700607,109510.0,109490.0,0.0331]
[1748240713662,0.09120607,109510.0,109490.0,0.0331]
[1748240717376,0.09120607,109510.0,109480.0,0.0314]
[1748240717527,0.09120607,109510.0,109490.0,0.0156]
[1748240718107,0.09020607,109510.0,109490.0,0.0156]
[1748240719136,0.08920607,109510.0,109490.0,0.0156]
[1748240719456,0.08320607,109510.0,109490.0,0.0156]
[1748240719953,0.08420607,109510.0,109490.0,0.0156]
[1748240720518,0.08520607,109510.0,109490.0,0.0156]
[1748240723599,0.6344033,109510.0,109490.0,0.0156]
[1748240723792,0.6344033,109510.0,109480.0,0.0338]
[1748240723929,0.08520607,109510.0,109480.0,0.0338]
[1748240724841,0.08320607,109510.0,109480.0,0.0338]
[1748240725535,0.6324033,109510.0,109480.0,0.0338]
[1748240726928,0.08320607,109510.0,109480.0,0.0338]
[1748240727355,0.07720607,109510.0,109480.0,0.0338]
[1748240729346,0.6264033,109510.0,109480.0,0.0338]
[1748240730224,0.0324,109500.0,109480.0,0.0338]
[1748240730451,0.12194556,109500.0,109480.0,0.0338]
[1748240731103,0.13188836,109500.0,109480.0,0.0338]
[1748240731296,0.09948836,109500.0,109480.0,0.0338]
[1748240733084,0.68198559,109500.0,109480.0,0.0338]
[1748240733320,0.68198559,109500.0,109470.0,0.0329]
[1748240733746,0.032,109490.0,109470.0,0.0167]
[1748240734579,0.032,109490.0,109470.0,0.0187]
[1748240735007,0.026,109490.0,109470.0,0.0351]
[1748240735227,0.0162,109490.0,109470.0,0.0351]
[1748240735435,0.81082559,109500.0,109470.0,0.0351]
[1748240735643,0.26162836,109500.0,109480.0,0.0329]
[1748240735899,0.09948836,109500.0,109470.0,0.00228349]
[1748240736133,0.0099428,109500.0,109490.0,0.0315]
[1748240736492,0.30764046,109510.0,109490.0,0.0315]
[1748240736692,0.001,109500.0,109490.0,0.0315]
[1748240736905,0.002,109500.0,109490.0,0.0315]
[1748240737270,0.001,109500.0,109490.0,0.0315]
[1748240737468,0.004,109500.0,109490.0,0.0315]
[1748240737695,0.006,109500.0,109490.0,0.0315]
[1748240739211,0.006,109500.0,109480.0,0.0316]
[1748240740124,0.41488596,109510.0,109480.0,0.0316]
[1748240740379,0.43178596,109510.0,109480.0,0.0316]
[1748240740559,0.002,109500.0,109480.0,0.0316]
[1748240740695,0.002,109500.0,109490.0,0.0164]
[1748240741627,0.002,109500.0,109490.0,0.0329]
[1748240742058,0.001,109500.0,109490.0,0.0329]
[1748240742265,0.27004596,109510.0,109490.0,0.0329]
[1748240742675,0.13378996,109510.0,109490.0,0.0164]
[1748240743113,0.002,109500.0,109490.0,0.0318]
[1748240743535,0.13578996,109510.0,109490.0,0.0318]
[1748240744206,0.13778996,109510.0,109490.0,0.0318]
[1748240746542,0.68698719,109510.0,109490.0,0.0318]
[1748240747070,0.68698719,109510.0,109490.0,0.0164]
[1748240750032,0.68698719,109510.0,109490.0,0.032]
[1748240750173,0.12098996,109510.0,109490.0,0.032]
[1748240750385,0.11498996,109510.0,109490.0,0.032]
[1748240753339,0.13128996,109510.0,109490.0,0.032]
[1748240755350,0.11498996,109510.0,109490.0,0.032]
[1748240758020,0.10898996,109510.0,109490.0,0.032]
[1748240759752,0.12498996,109510.0,109490.0,0.032]
[1748240760181,0.7637087,109510.0,109480.0,0.0327]
[1748240760360,0.67418719,109510.0,109480.0,0.0327]
[1748240760588,0.10898996,109510.0,109490.0,0.0167]
[1748240760787,0.09238996,109510.0,109500.0,0.0324]
[1748240761285,0.09038996,109510.0,109500.0,0.0324]
[1748240761455,0.09138996,109510.0,109500.0,0.0324]
[1748240761904,0.08738996,109510.0,109500.0,0.0324]
[1748240762289,0.09038996,109510.0,109500.0,0.0324]
[1748240762448,0.08938996,109510.0,109500.0,0.0324]
[1748240762649,0.09338996,109510.0,109500.0,0.0324]
[1748240765745,0.08738996,109510.0,109500.0,0.0324]
[1748240766295,0.08738996,109510.0,109480.0,0.16346748]
[1748240766501,0.08738996,109510.0,109480.0,0.00228315]
[1748240767155,0.08538996,109510.0,109480.0,0.00228315]
[1748240767391,0.08638996,109510.0,109480.0,0.00228315]
[1748240767566,0.10318996,109510.0,109480.0,0.00228315]
[1748240768100,0.09918996,109510.0,109480.0,0.00228315]
[1748240768221,0.11488996,109510.0,109470.0,0.4131228]
[1748240768586,0.11588996,109510.0,109470.0,0.50266836]
[1748240769184,0.19663068,109510.0,109470.0,0.42954556]
[1748240769659,0.19663068,109510.0,109480.0,0.0328]
[1748240769903,0.19563068,109510.0,109480.0,0.0328]
[1748240770983,0.11488996,109510.0,109480.0,0.0328]
[1748240771389,0.11588996,109510.0,109480.0,0.0328]
[1748240772204,0.0158,109500.0,109480.0,0.0328]
[1748240773516,0.001,109500.0,109480.0,0.0328]
[1748240774584,0.002,109500.0,109480.0,0.0328]
[1748240778655,0.002,109500.0,109480.0,0.3728]
[1748240781207,0.10998996,109510.0,109480.0,0.3728]
[1748240782568,0.11098996,109510.0,109480.0,0.3728]
[1748240783548,0.11198996,109510.0,109480.0,0.3728]
[1748240788977,0.10598996,109510.0,109480.0,0.3728]
[1748240796671,0.09998996,109510.0,109480.0,0.17215894]
[1748240797322,0.09998996,109510.0,109480.0,0.17444208]
[1748240797740,0.0444444,109510.0,109480.0,0.20245334]
[1748240797940,0.0444444,109510.0,109480.0,0.17215894]
[1748240798142,0.0346,109510.0,109480.0,0.17444202]
[1748240799868,0.0346,109510.0,109480.0,0.20714202]
[1748240800057,0.0346,109510.0,109480.0,0.20485894]
[1748240800263,0.0346,109510.0,109490.0,0.00228308]
[1748240801159,0.0336,109510.0,109490.0,0.00228308]
[1748240801366,0.0326,109510.0,109490.0,0.00228308]
[1748240801728,0.0356,109510.0,109490.0,0.00228308]
[1748240804492,0.0296,109510.0,109490.0,0.00228308]
[1748240812048,0.0236,109510.0,109490.0,0.00228308]
[1748240812693,0.0236,109510.0,109480.0,0.27798174]
[1748240812896,0.0236,109510.0,109480.0,0.3675273]
[1748240813628,0.0236,109510.0,109460.0,0.02912623]
[1748240813629,0.016,109490.0,109460.0,0.02912623]
[1748240813849,0.016,109480.0,109460.0,0.04562623]
[1748240814047,0.016,109470.0,109460.0,0.02912623]
[1748240814236,0.016,109470.0,109450.0,0.03388138]
[1748240814861,0.016,109470.0,109460.0,0.002]
[1748240815163,0.033,109470.0,109460.0,0.002]
[1748240815294,0.033,109470.0,109460.0,0.000136]
[1748240815726,0.0166,109480.0,109460.0,0.000136]
[1748240815921,0.12234556,109480.0,109460.0,0.000136]
[1748240816505,0.0161,109470.0,109460.0,0.000136]
[1748240817029,0.0161,109470.0,109460.0,0.002136]
[1748240817226,0.0161,109470.0,109460.0,0.004136]
[1748240817433,0.0161,109470.0,109460.0,0.002136]
[1748240817629,0.0161,109470.0,109460.0,0.004136]
[1748240818534,0.0161,109470.0,109460.0,0.000136]
[1748240819931,0.0101,109470.0,109460.0,0.000136]
[1748240820149,0.11605856,109480.0,109460.0,0.000136]
[1748240822973,0.0163,109470.0,109460.0,0.000136]
[1748240823218,0.13235856,109480.0,109460.0,0.000136]
[1748240825207,0.042813,109480.0,109460.0,0.00241975]
[1748240825422,0.042813,109480.0,109460.0,0.000136]
[1748240825629,0.0329,109480.0,109460.0,0.000136]